[Event "VIII Open Semana Santa 2024"]
[Site "San Vicente del Raspeig"]
[Date "2024.03.28"]
[Round "2.11"]
[White "Centron Antuna, Daniel"]
[Black "Xiao, Tong(Qd)"]
[Result "1-0"]
[ECO "B22"]
[WhiteElo "2234"]
[BlackElo "2484"]
[Annotator "TA"]
[PlyCount "113"]
[EventDate "2024.03.27"]
[EventType "swiss"]
[EventCountry "ESP"]
[SourceTitle "playchess.com"]
[Source "ChessBase"]
[SourceQuality "1"]
[TimeControl "5400+30"]

{[%evp 16,113,27,35,41,35,45,0,0,0,40,30,13,-9,-14,-4,-12,-18,0,0,0,0,1,0,0,0,0,0,0,-16,-15,-18,0,-10,7,-46,-38,-52,0,0,0,0,0,0,0,-14,0,0,0,0,0,0,28,-35,-12,-10,-10,-10,-12,-11,-11,-12,0,0,0,0,8,8,10,0,0,0,23,23,23,23,23,23,23,23,23,25,25,33,32,0,200,200,410,410,403,402,2220,2041,5057,2271,5237,5106,5106,5106]} 1. e4 {[%emt 0:00:01]} c5 {[%emt 0:00:06]} 2. c3 {[%emt 0:00:05]} Nf6 {[%emt 0:00:09]} 3. e5 {[%emt 0:00:04]} Nd5 {[%emt 0:00:04]} 4. Nf3 {[%emt 0:00:04]} Nc6 {[%emt 0:00:17]} 5. Bc4 {[%emt 0:00:12]} Nb6 {[%emt 0:00:06]} 6. Bb3 {[%emt 0:00:05]} c4 {[%emt 0:00:24]} 7. Bc2 {[%emt 0:00:06]} d6 {[%emt 0:00:06]} 8. exd6 {[%emt 0:00:09]} Qxd6 {[%emt 0:00:22]} 9. O-O {[%emt 0:00:10]} Bg4 {[%emt 0:00:28] B22: Sicilian: 2 c3.} 10. Re1 {[%emt 0:01:28] Dodges Ne5} O-O-O {[%emt 0:01:51]} 11. b3 {[%emt 0:03:39]} Qf6 $1 {[%emt 0:00:36]} 12. bxc4 {[%emt 0:02:50]} Nxc4 {[%emt 0:01:22]} 13. d4 {[%emt 0:07:41] Repels N4e5} Bxf3 {[%emt 0:03:33]} 14. Qxf3 {[%emt 0:03:06]} Qxf3 {[%emt 0:00:10]} 15. gxf3 {[%emt 0:00:04]} e6 {[%emt 0:00:14]} 16. Nd2 $146 {[%emt 0:06:47]} ({Predecessor:} 16. Bb3 N6a5 17. Nd2 Nxd2 18. Bxd2 Nxb3 19. axb3 a6 20. b4 Be7 21. Reb1 e5 22. b5 {½-½ Potapov,P (2458)-Kutynec,V (2262) Pardubice Czech op-A 23rd 2012 (4)}) 16... Nxd2 {[%emt 0:02:04]} 17. Bxd2 {[%emt 0:00:05]} Bd6 {[%emt 0:00:37]} 18. Bg5 {[%emt 0:06:30]} Be7 {[%emt 0:02:20]} 19. Bf4 {[%emt 0:02:50]} h6 {[%emt 0:00:59]} 20. Be4 {[%emt 0:09:31]} Na5 {[%emt 0:19:56]} 21. Rab1 {[%emt 0:09:52]} b6 {[%emt 0:00:58]} 22. Kf1 {[%emt 0:07:53]} Bd6 {[%emt 0:01:56]} 23. Be3 {[%emt 0:01:46][%cal Oc3c4]} g5 {[%emt 0:06:31]} 24. h4 {[%emt 0:06:08]} Nc4 {[%emt 0:08:34]} 25. h5 {[%emt 0:03:45]} (25. Bc1 $1 $11) 25... Kb8 {[%emt 0:00:45]} 26. a4 {[%emt 0:04:14]} Bf4 {[%emt 0:09:33]} (26... Rc8 $15) 27. Bxf4+ {[%emt 0:07:56]} gxf4 {[%emt 0:00:02]} 28. Ke2 {[%emt 0:00:11] Prevents Nd2.} Rc8 {[%emt 0:08:43]} 29. Bd3 {[%emt 0:00:50]} Rhd8 {[%emt 0:04:19]} 30. Rg1 {[%emt 0:01:57]} e5 {[%emt 0:02:43]} 31. Rb4 {[%emt 0:05:40]} Na5 {[%emt 0:00:10]} 32. dxe5 {[%emt 0:01:13]} Rxc3 {[%emt 0:00:08] And now ...Nc6 would win.} 33. Rd1 $1 {[%emt 0:00:57]} Nb3 {[%emt 0:09:46][%cal Oc3d3] ...Rcxd3! is the strong threat.} 34. Bc4 {[%emt 0:07:26]} ({White should play} 34. Bf5 $11 Nc1+ (34... Rxd1 35. Kxd1 Rxf3 36. Bg4 $16) 35. Ke1 Rxd1+ 36. Kxd1) 34... Nd4+ {[%emt 0:04:51]} 35. Kf1 {[%emt 0:00:01]} a5 {[%emt 0:00:15]} 36. Rxb6+ {[%emt 0:00:04]} Kc7 {[%emt 0:00:03]} 37. Rxh6 {[%emt 0:01:08]} Rxc4 {[%emt 0:00:00]} 38. Rf6 {[%emt 0:00:10][%csl LRf4,LRf7]} Rg8 {[%emt 0:05:52]} 39. Rxf7+ {[%emt 0:00:55]} Kc6 {[%emt 0:00:04]} 40. Rxf4 {[%emt 0:00:44]} Rg1+ {[%emt 0:02:02]} 41. Kxg1 $11 {[%emt 0:00:01][%mdl 4096] Endgame. KRR-KRN} Ne2+ {[%emt 0:00:01]} 42. Kf1 {[%emt 0:00:40]} Nxf4 {[%emt 0:00:02] KRN-KR} 43. h6 {[%emt 0:00:07] Strongly threatening h7.} Rb4 {[%emt 0:00:28]} 44. h7 {[%emt 0:00:38]} Rb8 $1 {[%emt 0:00:01]} 45. Kg1 {[%emt 0:00:21]} Rh8 {[%emt 0:01:02]} 46. Rd6+ {[%emt 0:00:05]} Kc5 {[%emt 0:00:15]} 47. Rd7 {[%emt 0:01:06]} Nh3+ {[%emt 0:01:17]} 48. Kg2 {[%emt 0:00:26]} Ng5 {[%emt 0:00:02]} 49. f4 {[%emt 0:01:01]} Rxh7 {[%emt 0:00:10]} 50. Rd2 {[%emt 0:01:30]} Ne6 $2 {[%emt 0:03:33]} (50... Ne4 $11 51. Rd8 Rf7) 51. f5 $18 {[%emt 0:00:48][%mdl 1024] White has strong compensation.} Nf4+ $2 {[%emt 0:05:28]} (51... Nd4) 52. Kg3 {[%emt 0:00:01]} Nd5 {[%emt 0:00:07]} 53. f6 {[%emt 0:00:35] Inhibits Rg7+.} Rh5 {[%emt 0:00:48]} (53... Rf7 $142 54. f4 Rf8) 54. f7 {[%emt 0:00:46]} ({Weaker is} 54. f4 Rf5 $14) 54... Rf5 {[%emt 0:00:02]} 55. e6 {[%emt 0:00:07]} Ne7 {[%emt 0:00:41]} 56. Rd8 {[%emt 0:00:16]} Ng6 {[%emt 0:00:07]} 57. f8=Q+ {[%emt 0:00:26]} 1-0

[Event "VIII Open Semana Santa 2024"]
[Site "San Vicente del Raspeig"]
[Date "2024.03.28"]
[Round "2.12"]
[White "Lamard, Guillaume"]
[Black "Ibarra Jerez, Juan Miguel"]
[Result "1-0"]
[ECO "E90"]
[WhiteElo "2483"]
[BlackElo "2231"]
[Annotator "TA"]
[PlyCount "67"]
[EventDate "2024.03.27"]
[EventType "swiss"]
[EventCountry "ESP"]
[SourceTitle "playchess.com"]
[Source "ChessBase"]
[SourceQuality "1"]
[TimeControl "5400+30"]

{[%evp 10,67,31,31,37,33,41,38,34,35,37,21,20,22,31,6,47,5,26,37,47,36,43,12,37,21,56,44,51,53,97,91,95,100,151,97,99,93,97,109,87,91,211,226,244,234,321,188,212,116,120,127,127,122,198,94,88,83,557,364]} 1. d4 {[%emt 0:00:12]} d6 {[%emt 0:00:10]} 2. Nf3 {[%emt 0:00:33]} Nf6 {[%emt 0:00:15]} 3. c4 {[%emt 0:00:27]} g6 {[%emt 0:00:07]} 4. Nc3 {[%emt 0:00:31]} Bg7 {[%emt 0:00:31]} 5. e4 {[%emt 0:00:43]} O-O {[%emt 0:00:13]} 6. Bd3 {[%emt 0:00:43]} Na6 {[%emt 0:06:03]} 7. O-O {[%emt 0:01:43]} c6 {[%emt 0:01:54]} 8. h3 {[%emt 0:04:27]} e5 {[%emt 0:00:29] Wehrt Bf4 ab. Weiß steht etwas besser.} 9. d5 {[%emt 0:02:57]} Bd7 {[%emt 0:07:08]} 10. dxc6 {[%emt 0:03:12]} bxc6 {[%emt 0:10:13]} 11. Be3 {[%emt 0:04:48]} Nc7 {[%emt 0:03:00]} 12. Re1 {[%emt 0:14:13]} Qe7 {[%emt 0:03:22]} 13. Bf1 {[%emt 0:04:07]} Ne6 {[%emt 0:09:31]} 14. b4 {[%emt 0:03:32]} Rfd8 {[%emt 0:07:54]} 15. Qc2 {[%emt 0:05:21]} Be8 {[%emt 0:07:59]} 16. Rad1 {[%emt 0:01:24]} Rac8 {[%emt 0:01:02]} 17. Qb3 {[%emt 0:01:39]} Nh5 {[%emt 0:09:55]} 18. Qa3 {[%emt 0:04:07]} Ra8 {[%emt 0:11:03]} 19. b5 {[%emt 0:01:52]} f5 {[%emt 0:00:52]} 20. bxc6 {[%emt 0:04:53] Weiß steht aktiver.} Bxc6 {[%emt 0:00:06]} 21. Nd5 {[%emt 0:01:13]} Bxd5 {[%emt 0:04:10]} (21... Qd7 $142) 22. cxd5 {[%emt 0:03:33]} ({Günstiger ist} 22. exd5 f4 23. dxe6 fxe3 24. Rxe3 (24. Qxe3 Rac8 $18)) 22... fxe4 $16 {[%emt 0:00:34]} 23. Nd2 {[%emt 0:00:56]} Nd4 {[%emt 0:02:07]} 24. Bxd4 {[%emt 0:05:05]} exd4 {[%emt 0:00:02]} 25. Nxe4 {[%emt 0:00:24]} Qe5 {[%emt 0:04:27] [#] Schwarz ist schwach auf den weissen Feldern} (25... Be5 $16) 26. Nxd6 $1 $18 {[%emt 0:09:57][%mdl 512]} Qg5 {[%emt 0:02:35]} (26... Qxd6 $2 27. Re8+ Rxe8 28. Qxd6 $18) (26... Qf4 27. Ne4) 27. Nb5 {[%emt 0:03:05][%csl LRa7,LRd4]} Nf4 {[%emt 0:01:28]} 28. Nc7 {[%emt 0:02:33]} (28. Nxd4 $142 Kh8 29. g3 Rxd5 30. Qa4 (30. Nf3 Qd8 $18)) 28... d3 {[%emt 0:00:59] [#]} 29. Rxd3 {[%emt 0:05:24]} (29. Bxd3 $2 Qxg2#) (29. Ne6 $1 $18 {[%cal Re6g5]} Nxe6 30. dxe6) 29... Nxd3 $16 {[%emt 0:00:45]} 30. Qxd3 {[%emt 0:00:53][%cal Od5d6] Zielt auf d6! ab.} (30. Bxd3 Qd2 31. Re7 Bf8 32. Nxa8 Rxa8 $16) 30... Rac8 {[%emt 0:00:31]} 31. d6 {[%emt 0:05:36] d7 ist eine echte Drohung.} Qc5 {[%emt 0:00:15] [#]} (31... Qf4 $16 {war angesagt.}) 32. Ne6 {[%emt 0:01:45]} (32. Re7 $1 $18 {[%cal Re7g7] und der Rest ist Schweigen.} Bf6 (32... Qxd6 $2 {verliert.} 33. Re8+ Rxe8 34. Qxd6 $18) (32... Rxd6 $2 {ist das falsche Schlagen.} 33. Qb3+ Kh8 34. Qf7 $18) 33. Qb3+ Kh8 34. Qf7 Bxe7 35. dxe7 (35. Ne6 Qe5 $16) 35... Qxc7 36. Qf6+ Kg8 37. exd8=N (37. exd8=R+ Rxd8 $18) (37. Bc4+ Qxc4 38. exd8=Q+ Rxd8 $18) 37... Rxd8 (37... Qxd8 $2 38. Bc4+ Rxc4 39. Qxd8+ $18) 38. Bc4+ Qxc4 39. Qxd8+ Kf7 40. Qd7+ Kg8 41. Qxa7 Qc1+ 42. Kh2) 32... Qxd6 {[%emt 0:00:21]} 33. Nxd8 {[%emt 0:00:07]} Qxd3 {[%emt 0:00:17][%mdl 8192]} (33... Qxd8 $16 34. Qb3+ Kh8) 34. Re8+ {[%emt 0:00:21] Gewichteter Fehlerwert: Weiß=0.21 (präzise) /Schwarz=0.46.  Verlustzug:     	---       	Schwarz=1     Fehler:       	Weiß=4     	Schwarz=3     Ungenau:       	Weiß=2     	Schwarz=4     OK:         	Weiß=12    	Schwarz=3     Bester:       	Weiß=1     	Schwarz=2} 1-0

[Event "VIII Open Semana Santa 2024"]
[Site "San Vicente del Raspeig"]
[Date "2024.03.28"]
[Round "2.13"]
[White "Colijn, Stefan"]
[Black "Ceres, Dragos"]
[Result "1/2-1/2"]
[ECO "A45"]
[WhiteElo "2230"]
[BlackElo "2482"]
[Annotator "TA"]
[PlyCount "90"]
[EventDate "2024.03.27"]
[EventType "swiss"]
[EventCountry "ESP"]
[SourceTitle "playchess.com"]
[Source "ChessBase"]
[SourceQuality "1"]
[TimeControl "5400+30"]

{[%evp 9,90,0,0,0,20,23,46,28,34,20,19,15,21,26,34,17,21,11,119,118,118,116,147,156,220,202,150,0,261,-25,-28,-27,-32,-45,-14,-6,0,-71,-66,-65,-79,-80,-84,-89,-75,-89,-74,-74,-76,-81,-71,-71,-78,-79,-68,-73,-45,-55,0,-7,0,0,0,0,0,0,0,0,0,-5,-4,-8,0,0,0,0,0,0,21,37,42,0,0]} 1. d4 {[%emt 0:00:01]} Nf6 {[%emt 0:03:05]} 2. Bf4 {[%emt 0:00:40]} g6 {[%emt 0:00:39]} 3. Nc3 {[%emt 0:00:06]} d5 {[%emt 0:00:11]} 4. h4 {[%emt 0:01:09]} Bg7 {[%emt 0:00:31]} 5. e3 {[%emt 0:00:14]} h5 {[%emt 0:02:02]} 6. Nf3 {[%emt 0:00:36]} (6. Nb5 $5 Na6 $8 7. Nc3 $11) 6... Bg4 {[%emt 0:00:31]} 7. Qd2 {[%emt 0:00:10]} c6 {[%emt 0:01:31]} 8. Ne5 {[%emt 0:00:35] White is slightly better.} Nbd7 {[%emt 0:00:05]} 9. f3 {[%emt 0:00:18]} Bf5 {[%emt 0:00:59]} 10. O-O-O {[%emt 0:12:39]} Nxe5 {[%emt 0:00:11]} 11. Bxe5 {[%emt 0:00:43]} b5 {[%emt 0:00:06]} 12. Kb1 {[%emt 0:02:33]} a5 {[%emt 0:01:22]} 13. Bd3 {[%emt 0:05:45]} Qb6 {[%emt 0:03:14]} (13... Bxd3 $11 14. Qxd3 Qb6) 14. Bxf5 $16 {[%emt 0:07:56]} gxf5 {[%emt 0:00:06]} 15. Qd3 {[%emt 0:00:06]} e6 {[%emt 0:00:47]} 16. e4 $1 {[%emt 0:03:26] White is much more active.} b4 {[%emt 0:04:46]} (16... fxe4 $16 17. fxe4 Rh6) 17. Na4 $18 {[%emt 0:03:20]} Qb5 {[%emt 0:00:05]} 18. Nc5 {[%emt 0:00:08]} (18. Qe3 $16 Rg8 (18... Qxa4 $2 19. Qg5 $18) 19. exf5 Qxa4 20. fxe6) 18... fxe4 $2 {[%emt 0:02:39][%mdl 8192] [#]} (18... Qxd3 $1 $11 {and Black has nothing to worry.} 19. cxd3 fxe4) 19. fxe4 $2 {[%emt 0:00:20]} (19. Qd2 $1 $18 {[%cal Rd2g5] And now Qg5 would win.} Rh6 (19... Bh6 $2 20. Qe1 $18) 20. g4 hxg4 21. fxg4) 19... Qxd3 $11 {[%emt 0:01:49]} 20. Rxd3 {[%emt 0:07:50] Black must now prevent Rg3.} Rg8 {[%emt 0:00:39]} 21. Rf1 {[%emt 0:05:19]} Ng4 {[%emt 0:07:04]} 22. Bd6 {[%emt 0:06:59]} Nh6 {[%emt 0:09:05]} 23. e5 {[%emt 0:08:48]} (23. c3 $11 {remains equal.}) 23... Nf5 $17 {[%emt 0:01:52]} 24. Rxf5 {[%emt 0:03:47]} exf5 {[%emt 0:01:58]} 25. Rg3 {[%emt 0:00:01]} O-O-O {[%emt 0:00:30] Prevents Nb7. aiming for ...f4.} 26. Rg5 {[%emt 0:03:37][%csl LRf5,LRh5][%cal Oa2a3]} f4 {[%emt 0:06:08][%cal Of4f3] Hoping for ...f3!} 27. a3 {[%emt 0:06:18] [#]} (27. Rxh5 $2 {is the wrong capture.} f3 (27... Bf8 28. Rf5 $17) 28. g3 (28. gxf3 $2 {loses.} Bxe5 29. a4 Bxd6 $19) 28... Rxd6 29. exd6 f2 $19 (29... Bxd4 $2 30. Nd3 $19)) 27... bxa3 $1 {[%emt 0:02:15]} 28. bxa3 {[%emt 0:02:35][%cal Od6e7]} Bh8 {[%emt 0:07:26]} 29. Rxh5 {[%emt 0:03:47]} Rxg2 {[%emt 0:04:55]} 30. Rf5 {[%emt 0:00:31] [#]} Rxd6 $1 {[%emt 0:00:09]} 31. exd6 {[%emt 0:00:23]} Bxd4 {[%emt 0:00:11][%mdl 4096] Endgame. KRB-KRN} 32. Nb3 $1 {[%emt 0:01:07]} Bc3 {[%emt 0:04:08] ...a4 would now be deadly.} 33. Rxf4 {[%emt 0:03:29]} Kd7 {[%emt 0:01:24]} (33... a4 $15 {might be stronger.} 34. Rxa4 Kd7) 34. Rf3 $1 $11 {[%emt 0:01:55]} Be5 {[%emt 0:03:24]} 35. Rxf7+ {[%emt 0:02:27]} Kxd6 {[%emt 0:00:05]} 36. Nxa5 {[%emt 0:01:14]} c5 {[%emt 0:00:26] ...Rg1+ is the strong threat.} 37. c4 {[%emt 0:01:51]} Bc3 {[%emt 0:02:16]} 38. Nb7+ {[%emt 0:00:42]} Ke6 {[%emt 0:00:19]} 39. Rf3 {[%emt 0:01:16]} Bd4 {[%emt 0:00:17]} 40. Na5 {[%emt 0:04:08]} dxc4 {[%emt 0:00:19]} 41. Nxc4 {[%emt 0:00:03]} Kd7 {[%emt 0:01:55]} 42. Rh3 {[%emt 0:00:47]} Kc6 {[%emt 0:00:19]} 43. h5 {[%emt 0:00:50]} Kb5 {[%emt 0:00:20]} 44. Nd6+ {[%emt 0:00:02]} Kc6 {[%emt 0:01:38]} 45. Nc4 {[%emt 0:00:02]} Kb5 {[%emt 0:04:07] Weighted Error Value: White=0.19 (very precise) /Black=0.23 (precise) .  Loses game:     	---       	Black=1      Missed win:     	White=1     	---        Mistake:       	White=2     	Black=3      Inaccurate:     	White=1     	Black=2      OK:         	White=14    	Black=16     Best:        	White=2     	Black=3      Strong:       	White=3     	Black=1} 1/2-1/2

[Event "VIII Open Semana Santa 2024"]
[Site "San Vicente del Raspeig"]
[Date "2024.03.28"]
[Round "2.14"]
[White "Uzcategui Rodriguez, Alejandro"]
[Black "Macias Pino, Diego"]
[Result "1-0"]
[ECO "A74"]
[WhiteElo "2219"]
[BlackElo "2477"]
[Annotator "TA"]
[PlyCount "125"]
[EventDate "2024.03.27"]
[EventType "swiss"]
[EventCountry "ESP"]
[SourceTitle "playchess.com"]
[Source "ChessBase"]
[SourceQuality "1"]
[TimeControl "5400+30"]

{[%evp 22,125,54,43,46,29,32,-36,-39,-63,-40,-90,-23,-40,0,-41,-20,-14,0,0,0,0,0,-5,20,47,78,88,125,111,113,124,322,84,96,83,77,70,259,258,258,60,255,263,289,277,1042,1000,855,282,282,279,477,472,447,362,358,366,350,262,262,251,597,597,574,574,554,547,547,538,566,520,534,669,669,643,687,631,793,765,830,662,797,789,939,833,776,647,640,633,633,627,2680,2634,1729,565,1928,1697,29972,29974,29974,29970,29984,29985,29983,29984]} 1. d4 {[%emt 0:00:07]} Nf6 {[%emt 0:00:05]} 2. c4 {[%emt 0:00:04]} c5 {[%emt 0:00:15]} 3. d5 {[%emt 0:00:06]} e6 {[%emt 0:00:03]} 4. Nc3 {[%emt 0:00:09]} exd5 {[%emt 0:00:04]} 5. cxd5 {[%emt 0:00:05]} d6 {[%emt 0:00:03]} 6. Nf3 {[%emt 0:00:06]} g6 {[%emt 0:00:06]} 7. Nd2 {[%emt 0:00:25]} Bg7 {[%emt 0:00:09]} 8. e4 {[%emt 0:00:15]} a6 {[%emt 0:01:53]} 9. a4 {[%emt 0:00:37]} Nbd7 {[%emt 0:00:15]} 10. Be2 {[%emt 0:00:08]} O-O {[%emt 0:01:47]} 11. O-O {[%emt 0:00:07]} Ne8 {[%emt 0:05:26] A74: Modern Benoni: Classical: 9...a6.} 12. Re1 {[%emt 0:07:18]} Rb8 {[%emt 0:07:08]} 13. f4 {[%emt 0:10:31]} f5 {[%emt 0:05:02]} 14. Bc4 $146 {[%emt 0:06:14]} (14. exf5 $14 gxf5 15. g3) ({Predecessor:} 14. exf5 gxf5 15. Nf3 Nc7 16. Ng5 Nf6 17. Bh5 Nxh5 18. Qxh5 h6 19. Ne6 Bxe6 20. dxe6 {0-1 Yanayt,E (2100)-Wang,T (2307) Charlotte CCCSA Winter 2021 (3)}) 14... Bd4+ $15 {[%emt 0:03:43]} 15. Kh1 {[%emt 0:00:56]} Ndf6 {[%emt 0:01:42]} 16. Be2 {[%emt 0:08:53]} (16. e5 $15 dxe5 (16... Ng4 $2 17. Re2 $17) 17. fxe5 (17. d6+ Kg7 $11)) 16... Nc7 {[%emt 0:09:38]} (16... fxe4 $17 17. Ndxe4 Nxe4 18. Nxe4 b5) 17. Bf3 {[%emt 0:04:55]} b5 {[%emt 0:05:18]} 18. axb5 {[%emt 0:03:42]} axb5 {[%emt 0:00:48]} (18... fxe4 $5 19. Ncxe4 axb5 $15) 19. e5 {[%emt 0:04:29]} dxe5 {[%emt 0:02:00]} 20. fxe5 {[%emt 0:02:36]} Bxc3 $1 {[%emt 0:00:21]} (20... Nfxd5 21. Nxd5 Nxd5 22. Nb3 $16) 21. bxc3 {[%emt 0:00:04]} Nfxd5 {[%emt 0:00:05]} 22. Nb3 $1 {[%emt 0:17:25]} c4 {[%emt 0:02:48]} 23. Na5 {[%emt 0:05:52]} Nxc3 {[%emt 0:08:51]} 24. Qd6 {[%emt 0:03:15]} Qxd6 {[%emt 0:15:25]} 25. exd6 {[%emt 0:00:45]} N7d5 {[%emt 0:00:02]} 26. Re5 $1 {[%emt 0:09:25]} Nb4 $2 {[%emt 0:05:21]} (26... Bd7 $16 27. Bd2 (27. Bxd5+ Nxd5 28. Rxd5 Rfc8 $16) 27... Rfc8 (27... Rf7 $2 28. Rxd5 Ne4 29. Bb4 $18)) 27. Bb2 $2 {[%emt 0:04:04]} (27. Bd2 $18 Nba2 28. Nc6) 27... Ne4 {[%emt 0:02:19]} 28. Bxe4 {[%emt 0:01:53]} fxe4 {[%emt 0:00:04]} 29. Re7 $1 {[%emt 0:00:19]} Rf7 $2 {[%emt 0:00:04]} ({Black should play} 29... Rf2 $14 30. Bd4 Rf5) 30. Re8+ $18 {[%emt 0:00:30]} Rf8 {[%emt 0:00:02] [#]} 31. Rxf8+ $1 {[%emt 0:00:58]} Kxf8 {[%emt 0:00:01] [#]} 32. Ba3 $1 {[%emt 0:00:00]} Be6 {[%emt 0:03:53]} 33. Bxb4 {[%emt 0:00:11]} Ke8 $2 {[%emt 0:00:05]} (33... Bd7 34. Re1 Kf7) 34. Nc6 $18 {[%emt 0:00:26]} Rc8 {[%emt 0:00:06]} 35. Nd4 $2 {[%emt 0:00:54]} (35. Ne5 Rd8 36. Ra7) 35... Bd7 $18 {[%emt 0:00:44]} 36. Ra3 {[%emt 0:04:06]} Kf7 $2 {[%emt 0:02:37]} (36... c3 {was called for.}) 37. Ra7 $18 {[%emt 0:00:45]} Ke8 {[%emt 0:00:02]} 38. Nxb5 {[%emt 0:06:55]} Bxb5 {[%emt 0:02:00]} 39. Re7+ {[%emt 0:00:00]} ({Less strong is} 39. Rxh7 c3 $18) 39... Kf8 {[%emt 0:00:06]} 40. d7 {[%emt 0:00:00]} ({Weaker is} 40. Rxe4 Bd7 $11) 40... Bxd7 {[%emt 0:00:05]} 41. Rxd7+ {[%emt 0:00:00]} Ke8 $2 {[%emt 0:00:09]} (41... Kg8 {is tougher.}) 42. Rxh7 $18 {[%emt 0:00:00]} Rc6 {[%emt 0:20:55]} 43. Re7+ {[%emt 0:00:30]} Kd8 {[%emt 0:00:00]} 44. Rxe4 {[%emt 0:00:25]} c3 {[%emt 0:00:00]} 45. Re1 {[%emt 0:00:56]} c2 {[%emt 0:00:00]} 46. Rc1 {[%emt 0:00:51]} Rc4 {[%emt 0:00:00]} 47. Ba5+ {[%emt 0:00:18]} Kd7 {[%emt 0:00:00]} 48. Kg1 {[%emt 0:00:09]} Kc6 {[%emt 0:00:00]} 49. Kf2 {[%emt 0:00:10]} Kb5 {[%emt 0:00:00]} 50. Bd2 {[%emt 0:00:08]} Ka4 {[%emt 0:00:00]} 51. Ke2 {[%emt 0:01:13]} Kb3 {[%emt 0:00:00]} 52. g3 {[%emt 0:00:55]} Rc7 {[%emt 0:00:00]} 53. h4 {[%emt 0:00:24]} Re7+ {[%emt 0:00:00]} 54. Kf3 {[%emt 0:00:17]} Rd7 {[%emt 0:00:00]} 55. Be3 {[%emt 0:01:01]} Kb2 {[%emt 0:00:00]} 56. Ke2 {[%emt 0:00:39]} Kc3 {[%emt 0:00:00]} 57. g4 {[%emt 0:00:32]} Rh7 {[%emt 0:00:00]} 58. Rh1 {[%emt 0:00:07]} Rh8 {[%emt 0:00:00]} 59. h5 {[%emt 0:00:07]} gxh5 {[%emt 0:00:00]} 60. gxh5 {[%emt 0:00:03]} Rh7 {[%emt 0:00:00]} 61. h6 {[%emt 0:00:05]} Kb2 {[%emt 0:00:00]} 62. Bd4+ {[%emt 0:00:13]} Kb3 {[%emt 0:00:00]} 63. Bg7 {[%emt 0:00:14]} 1-0

[Event "VIII Open Semana Santa 2024"]
[Site "San Vicente del Raspeig"]
[Date "2024.03.28"]
[Round "2.15"]
[White "Urazayev, Arystanbek"]
[Black "De La Puerta Cresis, Javier"]
[Result "0-1"]
[ECO "D32"]
[WhiteElo "2476"]
[BlackElo "2223"]
[Annotator "RC"]
[PlyCount "74"]
[EventDate "2024.03.27"]
[EventType "swiss"]
[EventCountry "ESP"]
[SourceTitle "playchess.com"]
[Source "ChessBase"]
[SourceQuality "1"]
[TimeControl "5400+30"]

1. d4 {[%emt 0:00:10]} d5 {[%emt 0:00:06]} 2. c4 {[%emt 0:00:24]} e6 {[%emt 0:00:05]} 3. Nc3 {[%emt 0:00:21]} c5 {[%emt 0:00:08]} 4. cxd5 {[%emt 0:00:17]} cxd4 {[%emt 0:00:14]} 5. Qa4+ {[%emt 0:01:01]} Bd7 {[%emt 0:00:11]} 6. Qxd4 {[%emt 0:00:05]} exd5 {[%emt 0:00:05]} 7. Qxd5 {[%emt 0:00:17]} Nf6 {[%emt 0:00:06]} 8. Qd1 {[%emt 0:00:06]} Bc5 {[%emt 0:00:07]} 9. Nf3 {[%emt 0:01:57]} O-O {[%emt 0:00:12]} 10. e3 {[%emt 0:01:09]} Qe7 {[%emt 0:00:07]} 11. Be2 {[%emt 0:02:11]} Rd8 {[%emt 0:00:07]} 12. Qc2 {[%emt 0:01:52]} Nc6 {[%emt 0:00:29]} 13. a3 {[%emt 0:02:37]} Ne5 {[%emt 0:02:29]} 14. O-O {[%emt 0:03:55]} Bc6 {[%emt 0:00:08]} 15. Nd4 {[%emt 0:07:38]} Bxd4 {[%emt 0:00:11]} 16. exd4 {[%emt 0:01:53]} Rxd4 {[%emt 0:00:03]} 17. Be3 {[%emt 0:01:35]} Rh4 {[%emt 0:00:06]} 18. Bg5 {[%emt 0:20:09]} Rd4 {[%emt 0:00:21]} 19. Rfe1 {[%emt 0:03:09]} h6 {[%emt 0:07:15]} 20. Be3 {[%emt 0:00:29]} Rh4 {[%emt 0:07:35]} 21. Rad1 {[%emt 0:21:44]} Bxg2 {[%emt 0:14:57]} 22. Kxg2 {[%emt 0:06:03]} Qe6 {[%emt 0:01:18]} 23. Kh1 {[%emt 0:10:43]} Qh3 {[%emt 0:02:40]} 24. Bf4 {[%emt 0:00:06]} Nf3 {[%emt 0:12:02]} 25. Bxf3 {[%emt 0:00:12]} Qxf3+ {[%emt 0:00:02]} 26. Kg1 {[%emt 0:00:06]} Qxf4 {[%emt 0:01:03]} 27. Re3 {[%emt 0:00:26]} Qxh2+ {[%emt 0:02:17]} 28. Kf1 {[%emt 0:00:01]} Ng4 {[%emt 0:02:15]} 29. Re4 {[%emt 0:00:57]} Rc8 {[%emt 0:02:34]} 30. Rde1 {[%emt 0:03:15]} Qh3+ {[%emt 0:01:26]} 31. Ke2 {[%emt 0:00:03]} Nxf2 {[%emt 0:02:15]} 32. Rxh4 {[%emt 0:02:44]} Qxh4 {[%emt 0:00:20]} 33. Qf5 {[%emt 0:00:07]} Re8+ {[%emt 0:01:27]} 34. Kf3 {[%emt 0:00:06]} Rd8 {[%emt 0:03:41]} 35. Re3 {[%emt 0:03:35]} Nh3 {[%emt 0:05:04]} 36. Kg2 {[%emt 0:01:17]} Rd2+ {[%emt 0:03:03]} 37. Ne2 {[%emt 0:00:19]} Qg5+ {[%emt 0:01:47]} 0-1